fUSD/lending_fUSD_20250806
["ID","MTS","AMOUNT","RATE_DAILY","PERIOD"]
[377640510,1754472653576,-191.422657,0.00032876,7]
[377640511,1754472653585,-400.0,0.00032876,14]
[377640512,1754472653595,-400.0,0.00032876,14]
[377640513,1754472653604,-191.422657,0.00032876,7]
[377640514,1754472653614,-400.0,0.00032876,14]
[377640515,1754472653624,-191.422657,0.00032876,7]
[377640516,1754472653633,-2770.32,0.00032876,14]
[377640517,1754472653643,-191.422657,0.00032876,7]
[377640518,1754472653652,-191.422657,0.00032876,7]
[377640519,1754472653662,-191.422657,0.00032876,7]
[377640520,1754472653671,-191.422657,0.00032876,7]
[377640521,1754472653681,-641.51,0.00032876,14]
[377640522,1754472653691,-191.422649,0.00032876,7]
[377640523,1754472653700,-151.0,0.00032876,7]
[377640524,1754472653710,-151.0,0.00032876,7]
[377640525,1754472653719,-691.08,0.00032876,14]
[377640526,1754472653729,-151.0,0.00032876,7]
[377640527,1754472653739,-151.0,0.00032876,7]
[377640528,1754472653749,-151.0,0.00032876,7]
[377640529,1754472653758,-400.0,0.00032876,14]
[377640530,1754472653767,-151.0,0.00032876,7]
[377640531,1754472653777,-400.0,0.00032876,14]
[377640532,1754472653787,-151.0,0.00032876,7]
[377640533,1754472653796,-400.0,0.00032876,14]
[377640534,1754472653806,-848.2,0.00032876,14]
[377640535,1754472653815,-400.0,0.00032876,14]
[377640536,1754472653825,-500.0,0.00032876,14]
[377640537,1754472653834,-1424.95,0.00032876,14]
[377640538,1754472653844,-500.0,0.00032876,14]
[377640539,1754472653853,-500.0,0.00032876,14]
[377640540,1754472653862,-151.0,0.00032876,7]
[377640541,1754472653872,-431.91,0.00032876,14]
[377640542,1754472653881,-151.0,0.00032876,7]
[377640543,1754472653890,-461.06446057,0.00032876,14]
[377640544,1754472653900,-3117.05,0.00032876,2]
[377640545,1754472653910,-1462.59,0.00032876,14]
[377640546,1754472653919,-2676.8,0.00032876,14]
[377640547,1754472653928,-151.0,0.00032876,7]
[377640548,1754472653938,-151.0,0.00032876,7]
[377640549,1754472653947,-151.0,0.00032876,7]
[377640550,1754472653956,-400.0,0.00032876,14]
[377640551,1754472653966,-400.0,0.00032876,14]
[377640552,1754472653976,-584.2,0.00032876,14]
[377640553,1754472653985,-400.0,0.00032876,14]
[377640554,1754472653994,-1546.96,0.00032876,14]
[377640555,1754472654004,-1187.36,0.00032876,14]
[377640556,1754472654014,-1852.96,0.00032876,14]
[377640557,1754472654025,-735.95,0.00032876,14]
[377640558,1754472654034,-735.95,0.00032876,14]
[377640559,1754472654044,-735.95,0.00032876,14]
[377640560,1754472654054,-400.0,0.00032876,14]
[377640561,1754472654065,-2478.53,0.00032876,14]
[377640562,1754472654075,-400.0,0.00032876,14]
[377640563,1754472654085,-400.0,0.00032876,14]
[377640564,1754472654094,-1625.5,0.00032876,14]
[377640565,1754472654105,-938.6,0.00032876,14]
[377640566,1754472654114,-400.0,0.00032876,14]
[377640567,1754472654123,-400.0,0.00032876,14]
[377640568,1754472654132,-2911.34,0.00032876,14]
[377640569,1754472654142,-2911.34,0.00032876,14]
[377640570,1754472654151,-2911.34,0.00032876,14]
[377640571,1754472654160,-2911.34,0.00032876,14]
[377640572,1754472654171,-2911.34,0.00032876,14]
[377640573,1754472654180,-2911.34,0.00032876,14]
[377640574,1754472654190,-2911.34,0.00032876,14]
[377640575,1754472654200,-2911.34,0.00032876,14]
[377640576,1754472654209,-400.0,0.00032876,14]
[377640577,1754472654219,-400.0,0.00032876,14]
[377640578,1754472654229,-1006.08,0.00032876,14]
[377640579,1754472654237,-400.0,0.00032876,14]
[377640580,1754472654247,-151.0,0.00032876,7]
[377640581,1754472654256,-158.661528,0.00032876,7]
[377640582,1754472654266,-400.0,0.00032876,14]
[377640583,1754472654278,-400.0,0.00032876,14]
[377640584,1754472654287,-400.0,0.00032876,14]
[377640585,1754472654297,-400.0,0.00032876,14]
[377640586,1754472654306,-400.0,0.00032876,14]
[377640587,1754472654316,-400.0,0.00032876,14]
[377640588,1754472654325,-1222.66,0.00032876,14]
[377640589,1754472654334,-400.0,0.00032876,14]
[377640590,1754472654344,-400.0,0.00032876,14]
[377640591,1754472654353,-1260.63,0.00032876,14]
[377640592,1754472654362,-2138.99,0.00032876,14]
[377640593,1754472654371,-400.0,0.00032876,14]
[377640594,1754472654380,-1107.02,0.00032876,14]
[377640595,1754472654389,-400.0,0.00032876,14]
[377640596,1754472654398,-1934.4,0.00032876,14]
[377640597,1754472654408,-1833.99,0.00032876,14]
[377640598,1754472654417,-400.0,0.00032876,14]
[377640599,1754472654426,-1830.51,0.00032876,14]
[377640600,1754472654436,-400.0,0.00032876,14]
[377640601,1754472654449,-1113.65,0.00032876,14]
[377640602,1754472654457,-2149.28,0.00032876,14]
[377640603,1754472654467,-2021.91,0.00032876,14]
[377640604,1754472654476,-481.31601417,0.00032876,14]
[377640605,1754472654485,-400.0,0.00032876,14]
[377640606,1754472654495,-400.0,0.00032876,14]
[377640607,1754472654505,-400.0,0.00032876,14]
[377640608,1754472654514,-400.0,0.00032876,14]
[377640609,1754472654523,-400.0,0.00032876,14]
[377640610,1754472654533,-978.61,0.00032876,14]
[377640611,1754472654544,-400.0,0.00032876,14]
[377640612,1754472654554,-1143.73,0.00032876,14]
[377640613,1754472654564,-400.0,0.00032876,14]
[377640614,1754472654575,-2140.34,0.00032876,14]
[377640615,1754472654585,-401.35314624,0.00032876,14]
[377640616,1754472654595,-2027.48,0.00032876,14]
[377640617,1754472654605,-400.0,0.00032876,14]
[377640618,1754472654614,-400.0,0.00032876,14]
[377640619,1754472654624,-400.0,0.00032876,14]
[377640620,1754472654633,-1983.09,0.00032876,14]
[377640621,1754472654643,-708.15,0.00032876,14]
[377640622,1754472654653,-689.94,0.00032876,14]
[377640623,1754472654662,-500.0,0.00032876,2]
[377640624,1754472654672,-400.0,0.00032876,14]
[377640625,1754472654681,-400.0,0.00032876,14]
[377640626,1754472654691,-400.0,0.00032876,14]
[377640627,1754472654701,-1610.53,0.00032876,14]
[377640628,1754472654712,-151.0,0.00032876,7]
[377640629,1754472654722,-151.0,0.00032876,7]
[377640630,1754472654889,-151.0,0.00032876,7]
[377640631,1754472654899,-400.0,0.00032876,14]
[377640632,1754472654909,-151.0,0.00032876,7]
[377640633,1754472654918,-400.0,0.00032876,2]
[377640634,1754472654928,-529.32,0.00032876,14]
[377640635,1754472654937,-204.41644395,0.00032876,2]
[377640636,1754472654946,-151.0,0.00032876,7]
[377640637,1754472654955,-151.0,0.00032876,7]
[377640638,1754472654966,-151.0,0.00032876,7]
[377640639,1754472654977,-400.0,0.00032876,14]
[377640640,1754472654987,-1854.31,0.00032876,14]
[377640641,1754472654998,-400.0,0.00032876,14]
[377640642,1754472655008,-1722.71,0.00032876,14]
[377640643,1754472655018,-400.0,0.00032876,120]
[377640644,1754472655028,-400.0,0.00032876,14]
[377640645,1754472655038,-400.0,0.00032876,14]
[377640646,1754472655048,-400.0,0.00032876,14]
[377640647,1754472655058,-400.0,0.00032876,14]
[377640648,1754472655067,-400.0,0.00032876,14]
[377640649,1754472655077,-1044.72,0.00032876,14]
[377640650,1754472655087,-409.49,0.00032876,14]
[377640651,1754472655097,-1979.83,0.00032876,14]
[377640652,1754472655106,-535.78,0.00032876,14]
[377640653,1754472655117,-1315.35,0.00032876,14]
[377640654,1754472655127,-400.0,0.00032876,14]
[377640655,1754472655136,-2279.73,0.00032876,14]
[377640656,1754472655147,-2203.02,0.00032876,14]
[377640657,1754472655156,-400.0,0.00032876,14]
[377640658,1754472655166,-1216.24,0.00032876,14]
[377640659,1754472655176,-400.0,0.00032876,14]
[377640660,1754472655185,-400.0,0.00032876,14]
[377640661,1754472655194,-1755.24,0.00032876,14]
[377640662,1754472655204,-400.0,0.00032876,14]
[377640663,1754472655213,-692.72,0.00032876,14]
[377640664,1754472655223,-400.0,0.00032876,14]
[377640665,1754472655232,-400.0,0.00032876,14]
[377640666,1754472655242,-400.0,0.00032876,14]
[377640667,1754472655251,-691.38,0.00032876,14]
[377640668,1754472655261,-400.0,0.00032876,14]
[377640669,1754472655275,-992.76,0.00032876,14]
[377640670,1754472655286,-400.0,0.00032876,14]
[377640671,1754472655303,-400.0,0.00032876,14]
[377640672,1754472655314,-2097.62,0.00032876,14]
[377640673,1754472655324,-628.91,0.00032876,14]
[377640674,1754472655333,-1701.27,0.00032876,14]
[377640675,1754472655344,-1810.02,0.00032876,14]
[377640676,1754472655355,-400.0,0.00032876,14]
[377640677,1754472655365,-2903.24,0.00032876,14]
[377640678,1754472655375,-400.0,0.00032876,14]
[377640679,1754472655384,-400.0,0.00032876,14]
[377640680,1754472655395,-400.0,0.00032876,14]
[377640681,1754472655404,-2745.35,0.00032876,14]
[377640682,1754472655414,-810.17,0.00032876,14]
[377640683,1754472655423,-544.38403957,0.00032876,14]
[377640684,1754472655433,-400.0,0.00032876,14]
[377640685,1754472655443,-1333.96,0.00032876,14]
[377640686,1754472655453,-700.93,0.00032876,14]
[377640687,1754472655463,-400.0,0.00032876,14]
[377640688,1754472655472,-923.07,0.00032876,14]
[377640689,1754472655483,-388.49950409,0.00032876,14]
[377640690,1754472655492,-1226.68,0.00032876,14]
[377640691,1754472655502,-465.27,0.00032876,14]
[377640692,1754472655511,-400.0,0.00032876,14]
[377640693,1754472655520,-400.0,0.00032876,14]
[377640694,1754472655530,-1145.51,0.00032876,14]
[377640695,1754472655539,-1913.66,0.00032876,14]
[377640696,1754472655549,-673.17,0.00032876,14]
[377640697,1754472655559,-1512.02,0.00032876,14]
[377640698,1754472655569,-400.3727224,0.00032876,14]
[377640699,1754472655578,-1453.65,0.00032876,14]
[377640700,1754472655588,-940.71,0.00032876,14]
[377640701,1754472655597,-400.0,0.00032876,14]
[377640702,1754472655607,-400.0,0.00032876,14]
[377640703,1754472655616,-400.0,0.00032876,14]
[377640704,1754472655626,-1636.86,0.00032876,14]
[377640705,1754472655636,-400.0,0.00032876,14]
[377640706,1754472655646,-1624.34,0.00032876,14]
[377640707,1754472655655,-400.0,0.00032876,14]
[377640708,1754472655666,-400.0,0.00032876,14]
[377640709,1754472655675,-400.0,0.00032876,14]
[377640710,1754472655685,-151.0,0.00032876,7]
[377640711,1754472655695,-426.1,0.00032876,14]
[377640712,1754472655705,-151.0,0.00032876,7]
[377640713,1754472655714,-156.405791,0.00032876,7]
[377640714,1754472655724,-1183.18,0.00032876,14]
[377640715,1754472655734,-664.11,0.00032876,14]
[377640716,1754472655745,-401.01997191,0.00032876,14]
[377640717,1754472655755,-1035.63,0.00032876,14]
[377640718,1754472655765,-1056.68,0.00032876,14]
[377640719,1754472655775,-2800.15,0.00032876,14]
[377640720,1754472655785,-151.0,0.00032876,7]
[377640721,1754472655795,-151.0,0.00032876,7]
[377640722,1754472655806,-151.0,0.00032876,7]
[377640723,1754472655815,-156.258049,0.00032876,7]
[377640724,1754472655825,-151.0,0.00032876,7]
[377640725,1754472655835,-154.120646,0.00032876,7]
[377640726,1754472655845,-500.0,0.00032876,30]
[377640727,1754472655855,-500.0,0.00032876,30]
[377640728,1754472655865,-500.0,0.00032876,30]
[377640729,1754472655875,-169.06313579,0.00032876,2]
[377640730,1754472655885,-601.35947887,0.00032876,30]
[377640731,1754472655894,-1147.0,0.00032876,2]
[377640732,1754472655904,-151.0,0.00032876,7]
[377640733,1754472655914,-151.0,0.00032876,7]
[377640734,1754472655924,-181.849602,0.00032876,7]
[377640735,1754472655933,-150.0,0.00032876,2]
[377640736,1754472655943,-151.0,0.00032876,7]
[377640737,1754472655952,-151.0,0.00032876,7]
[377640738,1754472655962,-151.0,0.00032876,7]
[377640739,1754472655971,-151.0,0.00032876,7]
[377640740,1754472655981,-157.286077,0.00032876,7]
[377640741,1754472655990,-212.02628065,0.00032876,2]
[377640742,1754472655999,-500.0,0.00032876,30]
[377640743,1754472656008,-500.0,0.00032876,30]
[377640744,1754472656017,-500.0,0.00032876,30]
[377640745,1754472656026,-500.0,0.00032876,30]
[377640746,1754472656036,-500.0,0.00032876,30]
[377640747,1754472656046,-504.18,0.00032876,30]
[377640748,1754472656056,-284.186404,0.00032876,7]
[377640749,1754472656065,-284.186404,0.00032876,7]
[377640750,1754472656075,-284.186404,0.00032876,7]
[377640751,1754472656086,-284.186404,0.00032876,7]
[377640752,1754472656095,-284.186404,0.00032876,7]
[377640753,1754472656104,-284.186404,0.00032876,7]
[377640754,1754472656114,-284.186404,0.00032876,7]
[377640755,1754472656123,-284.186404,0.00032876,7]
[377640756,1754472656133,-284.186404,0.00032876,7]
[377640757,1754472656142,-284.186404,0.00032876,7]
[377640758,1754472656152,-284.186404,0.00032876,7]
[377640759,1754472656161,-284.186404,0.00032876,7]
[377640760,1754472656171,-284.186404,0.00032876,7]
[377640761,1754472656180,-284.186398,0.00032876,7]
[377640762,1754472656190,-151.0,0.00032876,7]
[377640763,1754472656199,-151.0,0.00032876,7]
[377640764,1754472656209,-151.0,0.00032876,7]
[377640765,1754472656218,-151.0,0.00032876,7]
[377640766,1754472656228,-151.0,0.00032876,7]
[377640767,1754472656237,-151.0,0.00032876,7]
[377640768,1754472656247,-151.0,0.00032876,7]
[377640769,1754472656256,-151.0,0.00032876,7]
[377640770,1754472656267,-151.0,0.00032876,7]
[377640771,1754472656278,-165.261452,0.00032876,7]
[377640772,1754472656288,-151.0,0.00032876,7]
[377640773,1754472656298,-151.0,0.00032876,7]
[377640774,1754472656307,-151.0,0.00032876,7]
[377640775,1754472656317,-500.0,0.00032876,30]
[377640776,1754472656327,-151.0,0.00032876,7]
[377640777,1754472656337,-500.0,0.00032876,30]
[377640778,1754472656348,-427.02,0.00032876,30]
[377640779,1754472656361,-151.0,0.00032876,7]
[377640780,1754472656373,-197.36492,0.00032876,7]
[377640781,1754472656382,-155.956182,0.00032876,7]
[377640782,1754472656392,-500.0,0.00032876,30]
[377640783,1754472656401,-500.0,0.00032876,30]
[377640784,1754472656410,-500.0,0.00032876,30]
[377640785,1754472656419,-500.0,0.00032876,30]
[377640786,1754472656429,-500.0,0.00032876,30]
[377640787,1754472656438,-500.0,0.00032876,30]
[377640788,1754472656447,-500.0,0.00032876,30]
[377640789,1754472656456,-500.0,0.00032876,30]
[377640790,1754472656465,-1100.111847,0.00032876,7]
[377640791,1754472656474,-1100.111847,0.00032876,7]
[377640792,1754472656484,-1100.111847,0.00032876,7]
[377640793,1754472656494,-1100.111847,0.00032876,7]
[377640794,1754472656503,-1100.111847,0.00032876,7]
[377640795,1754472656512,-1100.111847,0.00032876,7]
[377640796,1754472656521,-1100.111847,0.00032876,7]
[377640797,1754472656530,-1100.111847,0.00032876,7]
[377640798,1754472656540,-1100.111847,0.00032876,7]
[377640799,1754472656549,-1100.111847,0.00032876,7]
[377640800,1754472656558,-1100.111847,0.00032876,7]
[377640801,1754472656567,-1100.111847,0.00032876,7]
[377640802,1754472656576,-1100.111847,0.00032876,7]
[377640803,1754472656586,-1100.111847,0.00032876,7]
[377640804,1754472656595,-1100.111847,0.00032876,7]
[377640805,1754472656604,-1100.111847,0.00032876,7]
[377640806,1754472656613,-1100.111847,0.00032876,7]
[377640807,1754472656623,-1100.111847,0.00032876,7]
[377640808,1754472656632,-1100.111847,0.00032876,7]
[377640809,1754472656641,-1100.111854,0.00032876,7]
[377640810,1754472656651,-152.757067,0.00032876,7]
[377640811,1754472656661,-151.0,0.00032876,7]
[377640812,1754472656671,-151.0,0.00032876,7]
[377640813,1754472656681,-151.0,0.00032876,7]
[377640814,1754472656691,-157.061858,0.00032876,7]
[377640815,1754472656700,-151.846374,0.00032876,7]
[377640816,1754472656710,-151.0,0.00032876,7]
[377640817,1754472656719,-151.0,0.00032876,7]
[377640818,1754472656729,-151.0,0.00032876,7]
[377640819,1754472656741,-259.252457,0.00032876,7]
[377640820,1754472656751,-151.0,0.00032876,7]
[377640821,1754472656761,-151.0,0.00032876,7]
[377640822,1754472656771,-151.0,0.00032876,7]
[377640823,1754472656782,-151.0,0.00032876,7]
[377640824,1754472656791,-151.0,0.00032876,7]
[377640825,1754472656802,-151.0,0.00032876,7]
[377640826,1754472656811,-151.0,0.00032876,7]
[377640827,1754472656821,-500.0,0.00032876,10]
[377640828,1754472656832,-500.0,0.00032876,10]
[377640829,1754472656842,-500.0,0.00032876,10]
[377640830,1754472656852,-500.0,0.00032876,10]
[377640831,1754472656863,-260.44344665,0.00032876,10]
[377640832,1754472656872,-500.0,0.00032876,30]
[377640833,1754472656882,-500.0,0.00032876,30]
[377640834,1754472656892,-500.0,0.00032876,30]
[377640835,1754472656903,-500.0,0.00032876,30]
[377640836,1754472656913,-500.0,0.00032876,30]
[377640837,1754472656923,-500.0,0.00032876,30]
[377640838,1754472656932,-500.0,0.00032876,30]
[377640839,1754472656941,-500.0,0.00032876,30]
[377640840,1754472656952,-500.0,0.00032876,30]
[377640841,1754472656962,-153.988213,0.00032876,7]
[377640842,1754472656971,-500.0,0.00032876,2]
[377640843,1754472656982,-151.0,0.00032876,7]
[377640844,1754472657318,-151.0,0.00032876,7]
[377640845,1754472657345,-151.0,0.00032876,7]
[377640846,1754472657356,-151.0,0.00032876,7]
[377640847,1754472657366,-151.0,0.00032876,7]
[377640848,1754472657375,-162.981426,0.00032876,7]
[377640849,1754472657384,-150.0,0.00032876,2]
[377640850,1754472657394,-500.0,0.00032876,2]
[377640851,1754472657403,-150.0,0.00032876,2]
[377640852,1754472657412,-150.0,0.00032876,2]
[377640853,1754472657422,-151.0,0.00032876,7]
[377640854,1754472657432,-163.48485,0.00032876,7]
[377640855,1754472657443,-151.0,0.00032876,7]
[377640856,1754472657454,-152.642329,0.00032876,7]
[377640857,1754472657467,-500.0,0.00032876,30]
[377640858,1754472657476,-500.0,0.00032876,30]
[377640859,1754472657486,-500.0,0.00032876,30]
[377640860,1754472657496,-500.0,0.00032876,30]
[377640861,1754472657506,-500.0,0.00032876,30]
[377640862,1754472657515,-500.0,0.00032876,30]
[377640863,1754472657526,-500.0,0.00032876,30]
[377640864,1754472657535,-500.0,0.00032876,30]
[377640865,1754472657545,-500.0,0.00032876,30]
[377640866,1754472657555,-500.0,0.00032876,30]
[377640867,1754472657565,-400.0,0.00032876,2]
[377640868,1754472657575,-400.0,0.00032876,2]
[377640869,1754472657586,-400.0,0.00032876,2]
[377640870,1754472657596,-400.0,0.00032876,2]
[377640871,1754472657606,-402.96743745,0.00032876,2]
[377640872,1754472657615,-151.0,0.00032876,7]
[377640873,1754472657625,-151.0,0.00032876,7]
[377640874,1754472657634,-151.0,0.00032876,7]
[377640875,1754472657645,-151.0,0.00032876,7]
[377640876,1754472657654,-247.384356,0.00032876,7]
[377640877,1754472657664,-247.384356,0.00032876,7]
[377640878,1754472657673,-247.384356,0.00032876,7]
[377640879,1754472657683,-247.384356,0.00032876,7]
[377640880,1754472657694,-247.384356,0.00032876,7]
[377640881,1754472657703,-247.384356,0.00032876,7]
[377640882,1754472657713,-247.384356,0.00032876,7]
[377640883,1754472657722,-151.0,0.00032876,7]
[377640884,1754472657732,-500.0,0.00032876,10]
[377640885,1754472657741,-247.384356,0.00032876,7]
[377640886,1754472657751,-500.0,0.00032876,10]
[377640887,1754472657761,-164.510283,0.00032876,7]
[377640888,1754472657771,-400.0,0.00032876,2]
[377640889,1754472657782,-245.31487842,0.00032876,10]
[377640890,1754472657791,-400.0,0.00032876,2]
[377640891,1754472657801,-400.0,0.00032876,2]
[377640892,1754472657811,-400.0,0.00032876,2]
[377640893,1754472657821,-400.0,0.00032876,2]
[377640894,1754472657830,-247.384356,0.00032876,7]
[377640895,1754472657841,-400.0,0.00032876,2]
[377640896,1754472657852,-247.384356,0.00032876,7]
[377640897,1754472657862,-400.0,0.00032876,2]
[377640898,1754472657873,-500.0,0.00032876,30]
[377640899,1754472657883,-400.0,0.00032876,2]
[377640900,1754472657899,-500.0,0.00032876,30]
[377640901,1754472657909,-247.384356,0.00032876,7]
[377640902,1754472657919,-400.0,0.00032876,2]
[377640903,1754472657929,-500.0,0.00032876,30]
[377640904,1754472657940,-400.0,0.00032876,2]
[377640905,1754472657950,-500.0,0.00032876,30]
[377640906,1754472657962,-400.0,0.00032876,2]
[377640907,1754472657973,-525.0994747,0.00032876,30]
[377640908,1754472657984,-400.0,0.00032876,2]
[377640909,1754472657995,-247.384356,0.00032876,7]
[377640910,1754472658005,-278.86161312,0.00032876,2]
[377640911,1754472658016,-247.384356,0.00032876,7]
[377640912,1754472658027,-247.384356,0.00032876,7]
[377640913,1754472658037,-247.384356,0.00032876,7]
[377640914,1754472658047,-247.384356,0.00032876,7]
[377640915,1754472658057,-247.384356,0.00032876,7]
[377640916,1754472658066,-247.384356,0.00032876,7]
[377640917,1754472658076,-247.384356,0.00032876,7]
[377640918,1754472658086,-247.38435,0.00032876,7]
[377640919,1754472658096,-500.0,0.00032876,30]
[377640920,1754472658106,-500.0,0.00032876,30]
[377640921,1754472658116,-500.0,0.00032876,30]
[377640922,1754472658125,-500.0,0.00032876,30]
[377640923,1754472658135,-500.0,0.00032876,30]
[377640924,1754472658145,-213.1,0.00032876,30]
[377640925,1754472658155,-1500.0,0.00032876,28]
[377640926,1754472658165,-1730.37,0.00032876,30]
[377640927,1754472658175,-1500.0,0.00032876,28]
[377640928,1754472658185,-1730.37,0.00032876,30]
[377640929,1754472658195,-1730.37,0.00032876,30]
[377640930,1754472658204,-1500.0,0.00032876,28]
[377640931,1754472658214,-151.0,0.00032876,7]
[377640932,1754472658224,-1730.37,0.00032876,30]
[377640933,1754472658233,-1500.0,0.00032876,28]
[377640934,1754472658243,-1730.37,0.00032876,30]
[377640935,1754472658253,-151.0,0.00032876,7]
[377640936,1754472658263,-1730.37,0.00032876,30]
[377640937,1754472658278,-1500.0,0.00032876,28]
[377640938,1754472658289,-465.0,0.00032877,10]
[377640939,1754472658299,-269.84397863,0.00032882,30]
[377640940,1754472658311,-4072.95,0.000329,14]
[377640941,1754472658323,-1117.7,0.000329,30]
[377640942,1754472658333,-211.52696026,0.000329,3]
[377640943,1754472658344,-2500.0,0.000329,12]
[377640944,1754472658353,-842.03384774,0.000329,30]
[377640945,1754472658364,-229.4,0.00032904,30]
[377640946,1754472658374,-250.16323601,0.00032916,2]
[377640947,1754472658384,-150.0,0.0003292,7]
[377640948,1754472658394,-1988.82087687,0.00032921,2]
[377640949,1754472658406,-150.0,0.00032942,7]
[377640950,1754472658415,-150.0,0.00032946,7]
[377640951,1754472658425,-1520.74717672,0.00032951,2]
[377640952,1754472658435,-150.0,0.00032952,7]
[377640953,1754472658445,-250.16323601,0.00032983,2]
[377640954,1754472658455,-171.998444,0.00033,10]
[377640955,1754472658466,-3500.0000045,0.00033,2]
[377640956,1754472658476,-301.25,0.00033,2]
[377640957,1754472658487,-2195.0689678,0.00033031,2]
[377640958,1754472658496,-150.0,0.00033036,7]
[377640959,1754472658506,-1520.74717672,0.00033043,2]
[377640960,1754472658515,-250.16323601,0.0003305,2]
[377640961,1754472658525,-150.0,0.00033063,7]
[377640962,1754472658535,-500.0,0.0003309,14]
[377640963,1754472658545,-500.0,0.0003309,14]
[377640964,1754472658556,-500.0,0.0003309,14]
[377640965,1754472658566,-537.06,0.0003309,14]
[377640966,1754472658576,-540.75,0.0003309,14]
[377640967,1754472658586,-2569.7,0.0003309,14]
[377640968,1754472658596,-1112.59,0.0003309,14]
[377640969,1754472658606,-500.0,0.0003309,14]
[377640970,1754472658616,-735.95,0.0003309,14]
[377640971,1754472658626,-500.0,0.0003309,30]
[377640972,1754472658636,-735.95,0.00033091,14]
[377640973,1754472658645,-461.08941942,0.00033091,120]
[377640974,1754472658656,-1368.10690912,0.00033092,2]
[377640975,1754472658666,-150.0,0.00033094,7]
[377640976,1754472658676,-150.0,0.00033094,7]
[377640977,1754472658686,-482.75407317,0.0003312,2]
[377640978,1754472658695,-150.0,0.00033126,7]
[377640979,1754472658705,-1520.74717672,0.00033136,2]
[377640980,1754472658715,-500.0,0.0003314,3]
[377640981,1754472658725,-190.26845134,0.0003314,3]
[377640982,1754472658735,-500.0,0.0003314,7]
[377640983,1754472658746,-500.0,0.0003314,7]
[377640984,1754472658757,-500.0,0.0003314,7]
[377640985,1754472658767,-150.0,0.0003314,7]
[377640986,1754472658776,-500.0,0.0003314,7]
[377640987,1754472658786,-500.0,0.0003314,7]
[377640988,1754472658795,-500.0,0.0003314,7]
[377640989,1754472658805,-500.0,0.0003314,7]
[377640990,1754472658815,-500.0,0.0003314,7]
[377640991,1754472658824,-150.0,0.0003314,7]
[377640992,1754472658834,-2401.31705874,0.0003314,2]
[377640993,1754472658843,-918.76,0.00033148,14]
[377640994,1754472658852,-2911.34,0.00033148,14]
[377640995,1754472658862,-500.0,0.00033148,30]
[377640996,1754472658871,-500.0,0.00033148,30]
[377640997,1754472658881,-437.0,0.00033149,10]
[377640998,1754472658891,-500.0,0.00033149,10]
[377640999,1754472658901,-500.0,0.00033149,10]
[377641000,1754472658911,-597.0,0.00033149,10]
[377641001,1754472658920,-300.0,0.00033149,10]
[377641002,1754472658930,-300.0,0.00033149,10]
[377641003,1754472658940,-300.0,0.00033149,10]
[377641004,1754472658950,-500.0,0.00033149,14]
[377641005,1754472658960,-500.0,0.00033149,14]
[377641006,1754472658969,-500.0,0.00033149,14]
[377641007,1754472658979,-500.0,0.00033149,14]
[377641008,1754472658989,-918.76,0.00033149,14]
[377641009,1754472658999,-918.76,0.00033149,14]